bitfinex/quotes_ETHUSD_20260314
["timestamp","ask_amount","ask_price","bid_price","bid_amount"]
[1773519266051,1.20525359,2077.7,2077.4,0.5193105]
[1773519266828,0.002,2077.5,2077.4,0.5193105]
[1773519275659,1.20525359,2077.7,2077.4,0.5193105]
[1773519278360,1.20525359,2077.7,2077.6,0.001]
[1773519282346,5.31515017,2077.8,2077.6,0.001]
[1773519283156,1.20325359,2077.7,2077.6,0.001]
[1773519284770,0.002,2077.9,2077.6,0.5193105]
[1773519285137,1.20514616,2077.9,2077.6,0.5193105]
[1773519288439,4.9153768,2078.0,2077.6,0.5193105]
[1773519288968,1.20314616,2077.9,2077.6,0.5193105]
[1773519289748,1.30614318,2078.0,2077.6,0.5193105]
[1773519290268,0.001,2077.7,2077.6,0.5193105]
[1773519290639,1.30614318,2078.0,2077.7,0.5183105]
[1773519291269,1.30614302,2078.0,2077.7,0.5183105]
[1773519293049,1.2051083,2078.0,2077.7,0.5183105]
[1773519300784,0.11988907,2078.0,2077.7,0.5183105]
[1773519302790,1.20313778,2077.9,2077.8,0.001]
[1773519304594,0.002,2078.0,2077.8,0.53579935]
[1773519305178,0.002,2078.0,2077.7,0.53479935]
[1773519309399,0.52773978,2078.0,2077.7,0.53479935]
[1773519310607,1.20313778,2077.9,2077.7,0.53479935]
[1773519315598,1.20513778,2077.9,2077.7,0.53479935]
[1773519315788,1.20313778,2077.9,2077.7,0.53479935]
[1773519316383,4.81439157,2078.0,2077.7,0.53479935]
[1773519316578,1.20313778,2077.9,2077.7,0.53479935]
[1773519316890,4.81439157,2078.0,2077.7,0.53479935]
[1773519317473,1.20313778,2077.9,2077.7,0.53479935]
[1773519317668,4.81439157,2078.0,2077.8,0.53479935]
[1773519318072,4.81439157,2078.0,2077.7,0.53479935]
[1773519320188,1.20507988,2078.0,2077.7,0.53479935]
[1773519320685,1.20503523,2078.1,2077.8,0.53479935]
[1773519327229,1.20503523,2078.1,2078.0,0.001]
[1773519328128,1.20503523,2078.1,2078.0,2.87e-05]
[1773519329126,1.20503523,2078.1,2077.9,0.60640381]
[1773519329627,0.002,2078.1,2077.9,0.60640381]
[1773519329931,0.002,2078.1,2077.8,0.001]
[1773519330427,0.002,2078.1,2077.8,0.01879229]
[1773519332430,0.65916195,2078.1,2077.8,0.01879229]
[1773519336035,1.20307988,2078.0,2077.8,0.01879229]
[1773519336531,0.65916195,2078.1,2077.8,0.01879229]
[1773519336831,1.20307988,2078.0,2077.8,0.01879229]
[1773519337036,1.09029114,2078.0,2077.8,0.01879229]
[1773519337209,0.65916195,2078.1,2077.8,0.01879229]
[1773519337737,1.20307988,2078.0,2077.8,0.01879229]
[1773519338039,0.65916195,2078.1,2077.8,0.01879229]
[1773519338434,1.20307988,2078.0,2077.8,0.01879229]
[1773519338618,0.65916195,2078.1,2077.8,0.01879229]
[1773519339635,1.8622269,2078.1,2078.0,0.001]
[1773519339829,1.8622269,2078.1,2077.8,0.01879229]
[1773519340131,0.002,2077.9,2077.8,0.01879229]
[1773519340634,1.8622269,2078.1,2077.8,0.01879229]
[1773519346454,1.86220108,2078.1,2077.8,0.01879229]
[1773519347768,0.65916195,2078.1,2077.8,0.01879229]
[1773519347959,1.86219236,2078.1,2077.8,0.01879229]
[1773519349869,1.86220716,2078.1,2077.8,0.01879229]
[1773519351272,1.86220716,2078.1,2078.0,0.001]
[1773519351469,0.002,2077.9,2077.8,0.01879229]
[1773519353275,0.002,2077.9,2077.8,0.001]
[1773519353487,1.93433391,2078.1,2077.8,0.001]
[1773519363205,1.93433391,2078.1,2078.0,0.001]
[1773519363409,1.93433391,2078.1,2078.0,2.878e-05]
[1773519366309,0.7312887,2078.1,2078.0,2.878e-05]
[1773519366509,1.93431069,2078.1,2078.0,2.878e-05]
[1773519367818,0.7292887,2078.0,2077.8,0.001]
[1773519368409,1.93242648,2077.9,2077.8,0.001]
[1773519368790,0.7292887,2077.8,2077.6,0.001]
[1773519369723,0.7292887,2077.8,2077.4,0.001]
[1773519370532,1.20325359,2077.7,2077.4,0.001]
[1773519370798,0.7292887,2077.6,2077.4,0.001]
[1773519373499,1.93262141,2077.6,2077.3,0.74142442]
[1773519374431,1.20329448,2077.7,2077.3,0.74142442]
[1773519375722,5.54230309,2077.8,2077.4,0.74042442]
[1773519375928,1.20329448,2077.7,2077.4,0.74042442]
[1773519376226,1.20329448,2077.7,2077.5,0.001]
[1773519377504,1.93258318,2077.7,2077.4,0.74042442]
[1773519379703,1.93445572,2077.9,2077.4,0.74042442]
[1773519379903,1.20513801,2077.9,2077.5,0.74042442]
[1773519381023,1.93442671,2077.9,2077.3,1.94486973]
[1773519381224,1.93442671,2077.9,2077.4,0.74042442]
[1773519388019,1.93442671,2077.9,2077.6,0.001]
[1773519388465,0.002,2077.7,2077.6,0.001]
[1773519394870,0.72722786,2077.7,2077.6,0.001]
[1773519395043,1.93048402,2077.7,2077.4,0.001]
[1773519400195,1.93048402,2077.7,2077.6,0.001]
[1773519402058,1.93048402,2077.7,2077.4,0.001]
[1773519403193,1.93048402,2077.7,2077.4,0.73045444]
[1773519412772,1.93048402,2077.7,2077.6,0.001]
[1773519412972,0.002,2077.5,2077.4,0.73045444]
[1773519418005,0.002,2077.5,2077.4,0.001]
[1773519418204,1.91734668,2077.7,2077.4,0.001]
[1773519422107,1.91734668,2077.7,2077.4,0.69696166]
[1773519423519,1.91734668,2077.7,2077.2,0.001]
[1773519423520,0.71209052,2077.6,2077.2,0.001]
[1773519424314,1.91540706,2077.6,2077.2,0.69696166]
[1773519424493,0.71209052,2077.5,2077.2,0.69696166]
[1773519424897,0.71409052,2077.5,2077.2,0.69696166]
[1773519425192,0.71409052,2077.5,2077.4,0.001]
[1773519425402,1.20528488,2077.7,2077.3,0.69596166]
[1773519425605,1.20528488,2077.7,2077.3,0.74410107]
[1773519426005,1.9173754,2077.7,2077.3,0.74410107]
[1773519429620,1.91728547,2077.9,2077.4,0.69596166]
[1773519429817,1.91728547,2077.9,2077.3,1.25159505]
[1773519429818,1.91728547,2077.9,2077.6,0.69596166]
[1773519431092,1.91728547,2077.9,2077.4,0.69596166]
[1773519431432,1.91728547,2077.9,2077.5,0.74409643]
[1773519436521,1.91728547,2077.9,2077.5,0.74509643]
[1773519436849,0.002,2077.7,2077.5,0.74509643]
[1773519447269,4.81433923,2078.0,2077.6,0.73911149]
[1773519447270,0.69684097,2078.0,2077.6,0.73911149]
[1773519448564,0.002,2078.0,2077.7,0.73911149]
[1773519448865,0.69684097,2078.0,2077.7,0.74021149]
[1773519453292,0.69684097,2078.0,2077.7,0.78834162]
[1773519455598,0.002,2078.0,2077.7,0.78834162]
[1773519456090,0.03123679,2078.1,2077.8,0.73911149]
[1773519457408,0.002,2078.3,2077.8,0.73911149]
[1773519457566,0.002,2078.3,2078.0,0.73911149]
[1773519457567,0.69684097,2078.3,2078.0,0.73911149]
[1773519458101,0.69684097,2078.3,2077.9,0.73911149]
[1773519460303,1.89975777,2078.3,2077.9,0.74021149]
[1773519460473,0.69484097,2078.2,2077.9,0.74021149]
[1773519469204,1.75076887,2078.3,2077.9,0.74021149]
[1773519471180,1.75076887,2078.3,2077.9,0.788337]
[1773519472698,0.002,2078.0,2077.9,0.788337]
[1773519474419,0.002,2078.2,2077.9,0.788337]
[1773519475604,0.002,2078.2,2077.9,0.74021149]
[1773519480816,0.002,2078.2,2077.9,1.94332445]
[1773519481019,1.20485518,2078.4,2078.0,0.7689522]
[1773519481190,1.77319371,2078.4,2078.0,0.81707539]
[1773519482018,0.568006,2078.3,2078.0,0.81707539]
[1773519483526,1.20485518,2078.4,2078.0,0.81707539]
[1773519484528,1.20485518,2078.4,2078.1,0.0011]
[1773519484826,1.20485518,2078.4,2078.1,0.7700522]
[1773519485229,0.56904258,2078.5,2078.1,0.7700522]
[1773519485404,1.20284868,2078.4,2078.1,0.7700522]
[1773519486630,1.76914199,2078.4,2078.1,0.7700522]
[1773519492932,0.002,2078.5,2078.1,0.7700522]
[1773519493315,0.56551777,2078.5,2078.1,0.7700522]
[1773519496837,0.56551777,2078.5,2078.2,0.0011]
[1773519497019,1.76835931,2078.5,2078.2,0.0011]
[1773519497221,0.001,2078.3,2078.2,0.0011]
[1773519497739,0.001,2078.3,2078.2,0.7700522]
[1773519502060,5.36714733,2078.9,2078.3,0.7477685]
[1773519502214,0.556885,2078.8,2078.3,0.7477685]
[1773519502546,1.75955974,2078.7,2078.3,0.7477685]
[1773519505946,1.75955974,2078.7,2078.2,1.20406014]
[1773519505947,0.71482863,2078.6,2078.2,0.7488685]
[1773519506321,0.71482863,2078.6,2078.2,1.9518293]
[1773519506542,0.71482863,2078.6,2078.3,0.7477685]
[1773519510140,0.71482863,2078.6,2078.4,0.001]
[1773519510340,0.002,2078.5,2078.4,0.001]
[1773519511966,0.71682863,2078.5,2078.4,0.001]
[1773519512253,0.71682863,2078.5,2078.2,0.0011]
[1773519514029,1.91962249,2078.5,2078.2,0.0011]
[1773519520664,0.71482863,2078.4,2078.2,0.0011]
[1773519520870,0.60058433,2078.5,2078.2,0.0011]
[1773519523244,1.8033748,2078.5,2078.4,0.001]
[1773519523569,0.002,2078.3,2078.2,0.0011]
[1773519545980,0.002,2078.3,2078.2,0.73786756]
[1773519546362,0.002,2078.4,2078.3,0.73676756]
[1773519554573,1.20470616,2078.7,2078.3,0.73676756]
[1773519556495,1.81731631,2078.7,2078.3,0.73676756]
[1773519556865,0.002,2078.7,2078.4,0.73676756]
[1773519560497,0.002,2078.7,2078.4,0.73786756]
[1773519560995,0.002,2078.7,2078.5,0.73676756]
[1773519563093,0.002,2078.7,2078.5,1.93952891]
[1773519563297,0.002,2078.7,2078.6,0.72959706]
[1773519563470,0.6235906,2078.9,2078.6,0.72959706]
[1773519564400,1.20369085,2079.0,2078.6,0.72959706]
[1773519566078,0.00118297,2079.0,2078.6,0.72959706]
[1773519566274,0.00327474,2079.2,2078.6,0.72959706]
[1773519568307,0.00327474,2079.2,2078.7,0.79412758]
[1773519569704,1.21195041,2079.3,2078.7,0.79412758]
[1773519570689,1.21195041,2079.3,2078.8,0.79412758]
[1773519570888,0.00153194,2079.3,2078.8,0.79893894]
[1773519571279,1.2023277,2079.3,2078.8,0.79970491]
[1773519571481,1.20385205,2079.3,2078.8,0.79970491]
[1773519571808,1.2023277,2079.3,2078.8,0.79970491]
[1773519572025,0.00152435,2079.3,2078.8,0.79970491]
[1773519572190,1.20385205,2079.3,2078.8,0.79970491]
[1773519572392,0.002,2079.1,2078.8,0.79970491]
[1773519573883,0.002,2079.1,2078.8,0.84780958]
[1773519574615,1.20585205,2079.3,2078.9,0.79970491]
[1773519574916,1.2023277,2079.3,2078.9,0.79970491]
[1773519576614,0.03593557,2079.3,2078.9,0.79970491]
[1773519576911,1.23826327,2079.3,2078.9,0.79970491]
[1773519584194,0.02976574,2079.3,2078.9,0.79970491]
[1773519584555,1.23209344,2079.3,2078.9,0.79970491]
[1773519585618,4.80929909,2079.4,2079.0,0.84763367]
[1773519585619,4.84398244,2079.4,2079.0,0.84763367]
[1773519585787,0.002,2079.1,2079.0,0.84763367]
[1773519589824,1.23901105,2079.3,2079.0,0.84763367]
[1773519590330,1.2043277,2079.3,2079.0,0.84763367]
[1773519590928,1.30526416,2079.3,2079.0,0.84763367]
[1773519592509,1.2043277,2079.3,2079.0,0.84763367]
[1773519593624,0.002,2079.3,2079.0,0.84763367]
[1773519598129,0.09721838,2079.3,2079.0,0.84763367]
[1773519599003,0.09399469,2079.6,2079.2,0.86151654]
[1773519599621,0.09399469,2079.6,2079.2,0.86251654]
[1773519600010,1.2947611,2079.9,2079.4,0.86151654]
[1773519600412,0.0927632,2079.8,2079.4,0.86151654]
[1773519600616,0.002,2079.6,2079.4,0.86151654]
[1773519602234,0.09234259,2079.6,2079.2,0.86251654]
[1773519607942,1.29451851,2079.6,2079.2,0.86251654]
[1773519608543,0.08148565,2079.5,2079.2,0.86251654]
[1773519608729,1.20417592,2079.6,2079.0,0.86251654]
[1773519609236,1.28566157,2079.6,2079.0,0.86251654]
[1773519610033,1.20417592,2079.6,2079.0,0.86251654]
[1773519610244,0.08018651,2079.5,2079.0,0.86251654]
[1773519610845,1.20417592,2079.6,2079.0,0.001]
[1773519611049,1.20417592,2079.6,2079.1,0.9016098]
[1773519612443,0.002,2079.6,2079.1,0.9016098]
[1773519612650,0.002,2079.6,2079.2,0.001]
[1773519612819,0.002,2079.4,2079.2,0.001]
[1773519615345,0.002,2079.4,2079.0,0.9026098]
[1773519615856,0.002,2079.4,2079.0,0.001]
[1773519617545,0.002,2079.4,2079.0,0.9026098]
[1773519618847,1.20415426,2079.6,2079.0,0.9026098]
[1773519619220,0.002,2079.6,2079.0,0.9026098]
[1773519620019,4.80861704,2079.7,2079.0,0.9026098]
[1773519623259,0.9623,2079.6,2079.0,0.9026098]
[1773519623424,4.80861704,2079.7,2079.0,0.9026098]
[1773519626057,4.80861704,2079.7,2079.2,0.001]
[1773519626355,0.002,2079.5,2079.2,0.001]
[1773519629057,0.002,2079.5,2079.1,0.87241569]
[1773519629238,0.86661154,2079.5,2079.1,0.87241569]
[1773519629437,4.81061704,2079.7,2079.1,0.87241569]
[1773519630530,1.20221207,2079.5,2079.1,0.87241569]
[1773519633760,4.85898292,2079.6,2079.1,0.88311067]
[1773519633931,1.20221207,2079.5,2079.1,0.88311067]
[1773519639341,1.20221207,2079.5,2079.2,0.88411067]
[1773519639542,0.002,2079.4,2079.2,0.88411067]
[1773519642085,1.20221207,2079.5,2079.2,0.88411067]
[1773519642679,4.81084828,2079.6,2079.3,0.88311067]
[1773519643268,1.20221207,2079.5,2079.3,0.88311067]
[1773519645346,1.20420009,2079.6,2079.3,0.88311067]
[1773519648985,1.30359486,2079.6,2079.3,0.88311067]
[1773519653293,0.88103547,2079.5,2079.0,0.89130553]
[1773519653488,1.20420009,2079.6,2079.0,0.89130553]
[1773519653489,0.88303547,2079.4,2079.0,0.89130553]
[1773519654270,0.88303547,2079.4,2079.3,0.001]
[1773519654469,0.88303547,2079.4,2079.0,0.89130553]
[1773519660604,1.2023277,2079.3,2079.0,0.89130553]
[1773519662504,2.08347371,2079.2,2078.9,0.89030553]
[1773519662677,2.08347371,2079.2,2078.8,0.001]
[1773519663005,2.08347371,2079.2,2078.8,0.89130553]
[1773519664014,1.20243824,2079.2,2078.8,0.89130553]
[1773519664306,1.20243824,2079.2,2078.9,0.04810236]
[1773519664506,1.20243824,2079.2,2078.9,0.93840789]
[1773519664818,0.002,2079.4,2078.1,0.0011]
[1773519664819,0.88103547,2079.1,2078.1,0.0011]
[1773519665000,0.88103547,2079.1,2078.2,0.89030553]
[1773519665001,0.88103547,2078.8,2078.2,0.89030553]
[1773519665199,0.88103547,2078.8,2078.3,0.93842177]
[1773519665510,0.88103547,2078.8,2078.3,0.04811624]
[1773519665716,0.88103547,2078.8,2078.4,0.89030553]
[1773519666511,0.88103547,2079.1,2078.6,0.89030553]
[1773519666881,0.88103547,2078.9,2078.5,0.0491116]
[1773519667077,0.88103547,2078.9,2078.5,5.05403627]
[1773519668210,0.88103547,2078.9,2078.5,0.0491116]
[1773519669628,2.08363216,2078.9,2078.6,5.8952302]
[1773519670004,2.08363216,2078.9,2078.6,5.00492467]
[1773519670407,0.88103547,2078.8,2078.6,5.00492467]
[1773519670886,0.88103547,2078.8,2078.6,5.00602467]
[1773519672123,2.0836836,2078.8,2078.6,5.00602467]
[1773519673228,0.88103547,2078.9,2078.6,5.8963302]
[1773519673523,2.08356181,2079.0,2078.7,5.8952302]
[1773519673721,2.08356181,2079.0,2078.7,0.89030553]
[1773519676601,2.08356181,2079.0,2078.7,0.89140553]
[1773519677324,2.08356181,2079.0,2078.7,0.89030553]
[1773519677823,2.08356181,2079.0,2078.7,0.89140553]
[1773519678007,1.20452634,2079.0,2078.8,5.00492467]
[1773519679428,1.20452634,2079.0,2078.9,5.00492467]
[1773519680019,1.20452634,2079.0,2078.9,5.00602467]
[1773519682010,1.20452634,2079.0,2078.9,0.0011]
[1773519684440,1.20452634,2079.0,2078.9,5.00602467]
[1773519687535,1.20452634,2079.0,2078.9,5.94595717]
[1773519688222,0.002,2079.0,2078.9,5.94595717]
[1773519688434,4.80992692,2079.1,2078.9,5.94595717]
[1773519688634,1.20244336,2079.1,2079.0,0.0011]
[1773519690136,1.20244336,2079.1,2079.0,5.00602467]
[1773519690320,4.81160824,2079.2,2079.0,5.94595717]
[1773519690517,1.20438553,2079.2,2079.1,0.0011]
[1773519691141,1.20438553,2079.2,2078.6,0.29132309]
[1773519692558,2.16167545,2079.2,2078.6,0.29132309]
[1773519695568,0.95728992,2079.1,2078.6,0.29132309]
[1773519696859,2.16169505,2079.2,2078.7,0.46413874]
[1773519702162,2.16169505,2079.2,2078.6,1.20270775]
[1773519702163,2.16169505,2079.2,2078.8,0.46238344]
[1773519702365,0.002,2079.0,2078.8,0.46238344]
[1773519702567,2.14150243,2079.2,2078.8,0.46238344]
[1773519704933,0.95728992,2079.2,2078.8,1.66497385]
[1773519705267,2.15970602,2079.2,2078.8,0.46238344]
[1773519712184,1.10014168,2079.2,2078.8,0.46238344]
[1773519713653,4.81132904,2079.3,2078.9,1.09333315]
[1773519713654,1.2043277,2079.3,2078.9,1.09333315]
[1773519714161,1.2043277,2079.3,2079.0,0.001]
[1773519714360,1.2043277,2079.3,2079.0,1.09433315]
[1773519714785,0.002,2079.2,2079.0,1.09433315]
[1773519715781,1.20431496,2079.4,2079.1,1.09333315]
[1773519723504,1.20431496,2079.4,2079.2,0.04809542]
[1773519724694,2.41064266,2079.4,2079.2,0.04809542]
[1773519725399,1.2083277,2079.4,2079.2,0.04809542]
[1773519725578,1.10214168,2079.6,2079.2,1.14142857]
[1773519725897,0.58568611,2079.6,2079.3,1.09333315]
[1773519726197,0.97592255,2079.7,2079.3,1.09333315]
[1773519726495,0.002,2079.7,2079.3,1.09333315]
[1773519726999,0.002,2079.4,2079.3,1.09333315]
[1773519728493,0.002,2079.4,2079.3,2.29566085]
[1773519729899,0.002,2079.4,2079.3,1.09333315]
[1773519732691,0.002,2079.7,2079.4,1.09333315]
[1773519734486,0.002,2079.7,2079.5,0.04808848]
[1773519734686,0.002,2079.7,2079.5,1.14142163]
[1773519737222,0.002,2079.7,2079.5,1.09333315]
[1773519741508,2.28639589,2080.0,2079.6,1.11489969]
[1773519741687,1.20392729,2080.0,2079.6,1.11489969]
[1773519742088,2.28977085,2080.0,2079.8,0.6]
[1773519748215,2.28977085,2080.0,2079.5,1.11489969]
[1773519750625,2.28977085,2080.0,2079.5,1.20220768]
[1773519750807,2.28977085,2080.0,2079.6,1.11489969]
[1773519751529,2.28977085,2080.0,2079.6,1.11589969]
[1773519751826,0.002,2079.8,2079.6,1.11589969]
[1773519753426,0.002,2079.8,2079.6,0.001]
[1773519761415,0.002,2079.8,2079.7,0.6]
[1773519762616,1.12597925,2080.1,2079.7,0.6]
[1773519762944,1.17408176,2080.1,2079.7,0.6]
[1773519763443,0.04810251,2080.1,2079.8,1.11489969]
[1773519763644,0.04810251,2080.1,2079.8,1.11589969]
[1773519764141,1.20180751,2080.2,2079.9,1.11489969]
[1773519764337,1.20180751,2080.2,2079.8,0.001]
[1773519764519,4.80923007,2080.3,2079.9,0.00383702]
[1773519764726,1.31563007,2080.2,2079.8,0.001]
[1773519765031,0.002,2080.1,2079.9,0.00383702]
[1773519767445,1.20386529,2080.1,2079.9,0.00383702]
[1773519778228,1.20386529,2080.1,2079.9,0.00483702]
[1773519780556,1.20386529,2080.1,2079.8,0.17570852]
[1773519790870,1.20386529,2080.1,2080.0,0.001]
[1773519791180,0.002,2079.9,2079.8,0.17570852]
[1773519800363,0.002,2080.1,2079.9,0.83452738]
[1773519803178,0.002,2080.1,2080.0,0.001]
[1773519803376,0.002,2080.1,2079.9,0.83452738]
[1773519815586,0.002,2080.1,2080.0,0.001]
[1773519815792,0.002,2080.1,2079.9,0.83452738]
[1773519823073,1.33435959,2080.1,2079.8,1.25108622]
[1773519823399,1.33435959,2080.1,2080.0,0.6]
[1773519835939,1.35700708,2080.3,2080.0,0.6]
[1773519839538,1.35700708,2080.3,2080.2,0.001]
[1773519839831,0.002,2080.1,2080.0,0.6]
[1773519840034,0.002,2080.1,2080.0,0.601]
[1773519845187,1.35900708,2080.1,2079.7,0.001]
[1773519845446,1.35900708,2080.1,2079.5,0.001]
[1773519845447,1.35700708,2079.8,2079.5,0.001]
[1773519845609,1.35700708,2079.8,2079.5,1.2031897]
[1773519845942,1.35700708,2079.8,2079.5,1.2041897]
[1773519846129,1.35700708,2079.8,2079.6,0.001]
[1773519848319,1.35700708,2079.8,2079.5,2.61552855]
[1773519848641,1.35700708,2079.8,2079.6,0.001]
[1773519849923,1.35700708,2079.8,2079.5,2.61552855]
[1773519850157,0.002,2080.1,2079.8,1.41233885]
[1773519850317,1.05004331,2080.1,2079.6,1.41233885]
[1773519850717,1.04969501,2080.0,2079.6,1.41233885]
[1773519852143,1.04969501,2080.0,2079.7,1.20209645]
[1773519853948,1.04969501,2080.0,2079.8,0.001]
[1773519854147,1.05169501,2080.0,2079.8,0.001]
[1773519861065,1.20392543,2080.0,2079.5,2.61555092]
[1773519861233,1.10293226,2079.9,2079.5,1.20321207]
[1773519862051,1.10293226,2079.9,2079.7,0.6]
[1773519866575,0.002,2079.8,2079.7,0.6]
[1773519873150,1.11888156,2079.8,2079.7,0.6]
[1773519877590,1.11888156,2079.8,2079.6,0.001]
[1773519880684,0.54009801,2079.7,2079.6,0.001]
[1773519882559,0.54283622,2079.8,2079.6,0.001]
[1773519882759,0.002,2079.8,2079.6,1.45483415]
[1773519884888,0.0073608,2079.8,2079.6,1.45483415]
[1773519885190,1.20943737,2079.8,2079.6,1.45483415]
[1773519885791,0.0073608,2079.8,2079.6,1.45483415]
[1773519888297,1.20942482,2079.8,2079.6,1.45383415]
[1773519889682,0.0073608,2079.8,2079.6,1.45383415]
[1773519894281,1.40106416,2079.6,2079.5,0.001]
[1773519894787,1.40642496,2079.6,2079.5,0.001]
[1773519894997,1.40642496,2079.6,2079.4,0.001]
[1773519896199,0.0053608,2079.6,2079.4,0.001]
[1773519896502,0.0053608,2079.6,2079.4,1.46510615]
[1773519898106,1.2075208,2079.6,2079.4,1.46510615]
[1773519898400,2.60858496,2079.6,2079.4,0.001]
[1773519898810,2.60858496,2079.6,2079.3,0.001]
[1773519898811,1.40106416,2079.5,2079.3,0.001]
[1773519898972,1.2075208,2079.6,2079.3,0.001]
[1773519898973,1.2075208,2079.6,2079.3,1.46510615]
[1773519899506,2.60858496,2079.6,2079.3,1.46510615]
[1773519900222,0.0053608,2079.6,2079.3,1.46510615]
[1773519903120,0.0053608,2079.6,2079.5,0.001]
[1773519903320,0.0073608,2079.6,2079.5,0.001]
[1773519904750,1.20951506,2079.6,2079.5,0.001]
[1773519905242,1.20951506,2079.6,2079.4,1.46410615]
[1773519905415,0.0073608,2079.6,2079.4,1.46410615]
[1773519906640,1.20952243,2079.6,2079.4,1.46410615]
[1773519908442,0.0073608,2079.6,2079.4,1.46410615]
[1773519908742,1.20952168,2079.6,2079.4,1.46410615]
[1773519909233,0.0073608,2079.6,2079.4,1.46410615]
[1773519909539,2.61058118,2079.6,2079.3,0.001]
[1773519909740,2.61058118,2079.6,2079.3,1.46510615]
[1773519909935,1.20951702,2079.6,2079.3,1.46510615]
[1773519910922,0.0073608,2079.6,2079.3,1.46510615]
[1773519914748,0.0073608,2079.6,2079.5,1.46510615]
[1773519915124,0.0073608,2079.6,2079.4,1.46410615]
[1773519918163,1.40106416,2079.5,2079.3,0.001]
[1773519918936,1.40642496,2079.5,2079.3,0.001]
[1773519919651,0.0053608,2079.5,2079.3,0.001]
[1773519920454,0.0053608,2079.5,2079.3,1.46510615]
[1773519927765,0.0073608,2079.5,2079.3,1.46510615]
[1773519928563,0.0073608,2079.5,2079.4,0.6]
[1773519933260,1.20415604,2079.6,2079.4,0.6]
[1773519933261,0.002,2079.6,2079.4,2.08097848]
[1773519933462,4.92586697,2079.8,2079.5,1.48097848]
[1773519933645,4.92586697,2079.8,2079.5,1.01227919]
[1773519934445,1.44578302,2079.7,2079.4,0.6]
[1773519938474,2.64791803,2079.7,2079.4,0.6]
[1773519939174,2.64791803,2079.7,2079.6,0.001]
[1773519943179,2.64791803,2079.7,2079.4,0.601]
[1773519944982,2.64791803,2079.7,2079.4,2.08197848]
[1773519951286,2.64791803,2079.7,2079.6,0.001]
[1773519951488,2.64791803,2079.7,2079.4,2.08197848]
[1773519951694,0.002,2079.5,2079.4,2.08197848]
[1773519957599,0.002,2079.7,2079.5,1.45103069]
[1773519963413,0.002,2079.7,2079.6,0.001]
[1773519964110,1.56100593,2079.7,2079.4,0.601]
[1773519965112,2.76312232,2079.7,2079.4,0.601]
[1773519968412,1.55900593,2079.6,2079.3,1.45203069]
[1773519970419,2.76118403,2079.6,2079.3,1.45203069]
[1773519974020,1.55900593,2079.6,2079.3,1.45203069]
[1773519975098,2.76116077,2079.6,2079.3,1.45203069]
[1773519975504,2.76116077,2079.6,2079.5,0.001]
[1773519975707,0.002,2079.5,2079.3,1.45203069]
[1773520018819,0.002,2079.5,2079.3,2.6543581]
[1773520019031,1.4958316,2079.6,2079.3,2.6543581]
[1773520019226,0.002,2079.7,2079.4,1.5794216]
[1773520019834,1.57810756,2079.7,2079.4,2.78167843]
[1773520020038,1.57810756,2079.7,2079.4,1.5794216]
[1773520020450,1.57810756,2079.7,2079.4,2.78165864]
[1773520021047,1.57810756,2079.7,2079.4,1.5794216]
[1773520023069,1.57810756,2079.7,2079.5,0.001]
[1773520024750,0.002,2079.7,2079.5,1.5804216]
[1773520025050,0.002,2079.8,2079.5,1.5804216]
[1773520025431,1.57810756,2079.8,2079.5,2.7826243]
[1773520025630,1.20497957,2080.0,2079.7,0.6]
[1773520025827,1.20497957,2080.0,2079.7,0.13135252]
[1773520026031,0.00301936,2080.0,2079.7,0.13135252]
[1773520026246,0.00301936,2080.0,2079.7,1.72598835]
[1773520026546,0.00301936,2080.0,2079.7,1.59463583]
[1773520034660,0.00301936,2080.0,2079.7,1.59563583]
[1773520034882,0.002,2079.8,2079.7,1.59563583]
[1773520035084,0.00301936,2080.0,2079.7,1.59563583]
[1773520046690,0.00301936,2080.0,2079.9,0.001]
[1773520046983,0.002,2079.8,2079.7,1.59563583]
[1773520047187,0.00301936,2080.0,2079.7,1.59563583]
[1773520058995,0.002,2080.0,2079.7,1.59563583]
[1773520059294,0.002,2080.0,2079.9,0.001]
[1773520059494,0.002,2080.0,2079.7,1.59563583]
[1773520060811,1.20392307,2080.0,2079.7,1.59563583]
[1773520070919,1.20392307,2080.0,2079.9,0.001]
[1773520071097,1.20392307,2080.0,2079.7,1.59563583]
[1773520071422,0.002,2079.8,2079.7,1.59563583]
[1773520071609,1.20392307,2080.0,2079.7,1.59563583]
[1773520083400,1.20392307,2080.0,2079.9,0.001]
[1773520083601,0.002,2079.8,2079.7,1.59563583]
[1773520085642,0.002,2080.0,2079.7,1.59563583]
[1773520090544,0.12273875,2080.0,2079.7,1.59563583]
[1773520090740,0.12273875,2080.0,2079.7,0.001]
[1773520090945,1.32471065,2080.0,2079.7,0.001]
[1773520091257,1.32471065,2080.0,2079.7,1.61889863]
[1773520091743,0.12009718,2079.9,2079.6,0.001]
[1773520091946,0.12009718,2079.9,2079.6,1.61889863]
[1773520093256,1.32211168,2079.9,2079.6,1.61889863]
[1773520095952,0.002,2079.8,2079.6,1.61889863]
[1773520096562,1.20199566,2079.9,2079.7,1.61789863]
[1773520097547,1.31795587,2080.0,2079.7,1.61789863]
[1773520107659,1.31795587,2080.0,2079.9,0.001]
[1773520107984,0.002,2079.8,2079.7,1.61789863]
[1773520123631,0.002,2079.9,2079.7,1.61789863]
[1773520129657,1.31795587,2080.0,2079.7,1.61789863]
[1773520131751,1.31795587,2080.0,2079.9,0.001]
[1773520132049,1.31795587,2080.0,2079.7,1.61789863]
[1773520132271,0.002,2079.9,2079.7,1.61789863]
[1773520132548,1.31795587,2080.0,2079.7,1.61789863]
[1773520141159,0.06497824,2079.9,2079.6,0.001]
[1773520141356,0.06497824,2079.9,2079.5,0.001]
[1773520141958,0.06497824,2079.9,2079.4,0.001]
[1773520143355,1.20203865,2079.8,2079.4,0.001]
[1773520143538,0.06248689,2079.7,2079.4,0.001]
[1773520144358,2.33124766,2079.6,2079.4,0.001]
[1773520145964,3.47217373,2079.6,2079.4,0.001]
[1773520146265,0.05870262,2079.5,2079.4,0.001]
[1773520148969,0.05870262,2079.5,2079.4,0.601]
[1773520150757,0.05870262,2079.5,2079.4,0.001]
[1773520157770,0.05970262,2079.5,2079.4,0.001]
[1773520170294,0.01660174,2079.4,2079.3,0.001]
[1773520170462,0.01660174,2079.4,2079.2,0.001]
[1773520171686,1.21892817,2079.4,2079.2,0.001]
[1773520180685,1.21892817,2079.4,2079.1,0.001]
[1773520181168,0.001,2079.2,2079.1,0.001]